bitfinex/quotes_BTCUSD_20220204
["timestamp","ask_amount","ask_price","bid_price","bid_amount"]
[1643958915510,0.005,37965.0,37958.0,0.26523994]
[1643958915708,0.00599552,37967.0,37958.0,0.26523994]
[1643958915909,0.27887022,37964.0,37958.0,0.26523994]
[1643958916108,0.00599552,37967.0,37958.0,0.26523994]
[1643958916109,0.005,37963.0,37958.0,0.26523994]
[1643958916308,0.00599552,37967.0,37958.0,0.26523994]
[1643958916509,0.005,37967.0,37958.0,0.26523994]
[1643958916809,0.00099556,37964.0,37958.0,0.26523994]
[1643958917309,0.00099556,37964.0,37959.0,0.05]
[1643958917709,0.005,37966.0,37959.0,0.05]
[1643958917909,0.00099557,37963.0,37959.0,0.05]
[1643958918510,0.05,37962.0,37959.0,0.05]
[1643958918711,0.005,37961.0,37959.0,0.05]
[1643958919144,0.00099559,37962.0,37959.0,0.05]
[1643958920145,0.00099559,37962.0,37953.0,0.21138754]
[1643958920146,0.05,37960.0,37951.0,0.15132931]
[1643958920348,0.05,37952.0,37951.0,0.01959031]
[1643958920948,0.05,37952.0,37950.0,0.01931546]
[1643958921150,0.055,37952.0,37950.0,0.01931546]
[1643958922049,0.646646,37951.0,37950.0,0.01931546]
[1643958922247,0.055,37952.0,37950.0,0.01931546]
[1643958922894,0.346646,37951.0,37946.0,0.00019668]
[1643958923095,0.05,37948.0,37945.0,0.0670786]
[1643958923295,0.005,37947.0,37945.0,0.0670786]
[1643958923495,0.005,37950.0,37945.0,0.06688192]
[1643958923697,0.005,37950.0,37945.0,0.065886]
[1643958923895,0.005,37950.0,37945.0,0.06707856]
[1643958924698,0.055,37950.0,37945.0,0.06707856]
[1643958924896,0.005,37949.0,37945.0,0.06608268]
[1643958925098,0.005,37951.0,37945.0,0.06707856]
[1643958925295,0.38930448,37948.0,37945.0,0.06707856]
[1643958925498,0.005,37947.0,37945.0,0.06707856]
[1643958925796,0.005,37947.0,37945.0,0.06688188]
[1643958925996,0.43002106,37948.0,37945.0,0.06688188]
[1643958926196,0.38002106,37948.0,37945.0,0.06608268]
[1643958927045,0.38002106,37948.0,37945.0,0.28945997]
[1643958927645,0.38002106,37948.0,37945.0,0.29045585]
[1643958928045,0.38002106,37948.0,37945.0,0.06707856]
[1643958928344,0.43002106,37948.0,37945.0,0.06707856]
[1643958928545,0.43002106,37948.0,37945.0,0.06608268]
[1643958928745,0.43002106,37948.0,37945.0,0.05707856]
[1643958928947,0.05,37947.0,37945.0,0.05707856]
[1643958929146,0.05,37947.0,37945.0,0.10688188]
[1643958929346,0.05,37947.0,37945.0,0.05688188]
[1643958929647,0.05,37947.0,37945.0,0.00099588]
[1643958929852,0.05,37947.0,37944.0,0.00019668]
[1643958930047,0.38002106,37948.0,37944.0,0.00099589]
[1643958930299,0.05,37945.0,37944.0,0.00099589]
[1643958930499,0.05,37945.0,37944.0,0.06708257]
[1643958930698,0.38002106,37945.0,37944.0,0.32519071]
[1643958930898,0.38002106,37945.0,37944.0,0.32399814]
[1643958932303,0.1454912,37940.0,37939.0,0.66009271]
[1643958932603,0.1454912,37940.0,37939.0,0.71009271]
[1643958932800,0.1454912,37940.0,37939.0,0.72916744]
[1643958933001,0.1454912,37940.0,37939.0,0.70804409]
[1643958934245,0.1454912,37940.0,37939.0,0.80804409]
[1643958935046,0.1454912,37940.0,37939.0,0.78896936]
[1643958936048,0.52551226,37940.0,37939.0,0.78896936]
[1643958937693,0.52551226,37940.0,37938.0,0.48628372]
[1643958937694,0.52551226,37940.0,37938.0,0.27525308]
[1643958937897,0.52551226,37940.0,37938.0,0.25025308]
[1643958938095,0.52551226,37940.0,37938.0,0.31514264]
[1643958938397,0.52551226,37940.0,37939.0,0.765885]
[1643958939195,0.52551226,37940.0,37939.0,0.065885]
[1643958939396,0.52551226,37940.0,37939.0,0.115885]
[1643958940401,0.52551226,37940.0,37939.0,0.33136658]
[1643958940798,0.52551226,37940.0,37939.0,0.28136658]
[1643958941199,0.52551226,37940.0,37939.0,0.065885]
[1643958941845,0.52551226,37940.0,37939.0,0.115885]
[1643958942248,0.57551226,37940.0,37939.0,0.115885]
[1643958942446,0.57551226,37940.0,37939.0,0.18176936]
[1643958942848,0.52551226,37940.0,37939.0,0.13176936]
[1643958943849,0.52551226,37940.0,37939.0,0.18176936]
[1643958944748,0.52551226,37940.0,37939.0,0.13176936]
[1643958946003,0.00099609,37951.0,37942.0,0.15192373]
[1643958946200,0.00099609,37951.0,37944.0,0.07187392]
[1643958946402,0.00099609,37951.0,37945.0,0.51557973]
[1643958946599,0.02,37961.0,37945.0,0.51557973]
[1643958946600,0.02,37961.0,37946.0,0.05]
[1643958946803,0.22951656,37961.0,37952.0,0.22234674]
[1643958946998,0.22951656,37961.0,37952.0,0.34127377]
[1643958947198,0.22951656,37961.0,37955.0,0.065861]
[1643958947199,0.02,37961.0,37955.0,0.065861]
[1643958947599,0.07,37961.0,37955.0,0.065861]
[1643958947799,0.02,37961.0,37955.0,0.065861]
[1643958948000,0.07,37961.0,37955.0,0.065861]
[1643958948205,0.05,37956.0,37955.0,0.065861]
[1643958948400,0.05,37956.0,37954.0,0.181722]
[1643958948604,0.05,37956.0,37954.0,0.131722]
[1643958948959,0.05,37956.0,37952.0,0.131747]
[1643958948960,0.08123121,37953.0,37952.0,0.131747]
[1643958949149,0.08123121,37953.0,37946.0,0.01945968]
[1643958949150,0.13123121,37953.0,37946.0,0.01945968]
[1643958949355,0.05,37947.0,37946.0,0.01945968]
[1643958949550,0.05,37947.0,37946.0,0.81004968]
[1643958950751,0.05,37947.0,37946.0,0.91004968]
[1643958951151,0.05,37947.0,37946.0,1.02235489]
[1643958951552,0.08,37948.0,37946.0,1.02235489]
[1643958951751,0.13,37947.0,37946.0,1.02235489]
[1643958953099,0.13,37947.0,37946.0,1.08823489]
[1643958955703,0.13,37947.0,37946.0,0.89059]
[1643958956753,0.28667142,37952.0,37946.0,0.89059]
[1643958956754,0.01604372,37952.0,37946.0,0.89059]
[1643958956950,0.28242036,37951.0,37946.0,0.89059]
[1643958957553,0.0527,37951.0,37946.0,0.89059]
[1643958957755,0.33886193,37963.0,37952.0,0.15]
[1643958957955,0.50829289,37979.0,37952.0,0.15]
[1643958957956,0.99833124,37966.0,37962.0,0.05]
[1643958958155,0.05,37968.0,37962.0,0.15231]
[1643958958354,0.05,37968.0,37964.0,0.05]
[1643958958558,0.02740254,37968.0,37964.0,0.05]
[1643958958954,0.02740254,37968.0,37962.0,0.15231]
[1643958959152,0.02740254,37968.0,37962.0,0.10231]
[1643958959354,0.346646,37967.0,37962.0,0.10231]
[1643958959954,0.27751157,37966.0,37962.0,0.10231]
[1643958960198,0.25757333,37964.0,37962.0,0.10231]
[1643958961399,0.00099722,37965.0,37962.0,0.10231]
[1643958961599,0.00099722,37965.0,37962.0,0.20231]
[1643958962201,0.02740254,37968.0,37962.0,0.20231]
[1643958962403,0.00099721,37965.0,37962.0,0.20231]
[1643958962802,0.00099721,37965.0,37963.0,0.2385425]
[1643958963402,0.02740254,37968.0,37962.0,0.26817242]
[1643958963603,0.0009972,37966.0,37962.0,0.26817242]
[1643958964561,0.30049175,37968.0,37962.0,0.26817242]
[1643958964758,0.0009972,37966.0,37962.0,0.50672357]
[1643958965159,0.22706832,37964.0,37962.0,0.39987342]
[1643958965360,0.22706832,37964.0,37962.0,0.18731]
[1643958965560,0.22706832,37964.0,37962.0,0.10231]
[1643958965761,0.22706832,37964.0,37962.0,0.15231]
[1643958965959,0.22706832,37964.0,37962.0,0.10231]
[1643958966962,0.57371432,37964.0,37962.0,0.10231]
[1643958968304,0.89769,37960.0,37955.0,0.05]
[1643958968504,0.89769,37960.0,37952.0,0.13174535]
[1643958969011,0.0630954,37955.0,37953.0,0.115875]
[1643958969404,0.0630954,37955.0,37953.0,0.18174723]
[1643958969405,0.30247203,37955.0,37953.0,0.18174723]
[1643958970205,0.00099734,37956.0,37953.0,0.18174723]
[1643958970407,0.00099734,37956.0,37953.0,0.05]
[1643958970608,0.26018069,37958.0,37953.0,0.05]
[1643958970808,0.00099733,37956.0,37953.0,0.11588]
[1643958971007,0.00099733,37956.0,37953.0,0.05]
[1643958971207,0.22877481,37954.0,37953.0,0.05]
[1643958972748,0.09077927,37955.0,37953.0,0.05]
[1643958972949,0.26018069,37958.0,37953.0,0.05]
[1643958973149,0.00099735,37955.0,37953.0,0.05]
[1643958973351,0.00099735,37955.0,37953.0,0.1817579]
[1643958974149,0.18940472,37957.0,37953.0,0.1817579]
[1643958974353,0.00099734,37956.0,37953.0,0.05]
[1643958974650,0.00099734,37956.0,37951.0,0.1]
[1643958974850,0.00099734,37956.0,37951.0,0.0960895]
[1643958975322,0.38021589,37952.0,37951.0,0.0960895]
[1643958975523,0.18940472,37957.0,37951.0,0.0960895]
[1643958975724,0.89769,37960.0,37951.0,0.0960895]
[1643958975925,0.89769,37960.0,37954.0,0.065877]
[1643958975926,0.346646,37959.0,37954.0,0.065877]
[1643958976726,0.00099768,37958.0,37954.0,0.165877]
[1643958977324,0.00099768,37958.0,37955.0,0.05]
[1643958977525,0.00099768,37958.0,37954.0,0.05]
[1643958977526,0.346646,37957.0,37954.0,0.05]
[1643958977724,0.346646,37957.0,37950.0,0.131748]
[1643958977725,0.10188337,37956.0,37951.0,0.1]
[1643958978425,0.89769,37960.0,37953.0,0.065876]
[1643958978726,0.89769,37960.0,37954.0,0.06587324]
[1643958978959,0.89769,37960.0,37953.0,0.03412953]
[1643958979151,0.01587047,37956.0,37953.0,0.03412953]
[1643958979659,0.89769,37960.0,37955.0,0.73412953]
[1643958979850,0.01587047,37958.0,37956.0,0.27326734]
[1643958980051,0.84193203,37960.0,37955.0,0.36347026]
[1643958980253,0.84193203,37960.0,37955.0,0.41347026]
[1643958980455,0.84193203,37960.0,37958.0,0.05]
[1643958981055,0.84193203,37960.0,37959.0,0.29977203]
[1643958981254,0.84193203,37960.0,37959.0,0.39977203]
[1643958981853,0.84193203,37960.0,37959.0,0.46562903]
[1643958985301,0.84193203,37960.0,37959.0,0.39977203]
[1643958986751,0.84193203,37960.0,37959.0,0.44977203]
[1643958986953,0.84193203,37960.0,37959.0,0.39977203]
[1643958987151,0.84193203,37960.0,37959.0,0.1]
[1643958987351,0.84193203,37960.0,37959.0,0.05]
[1643958987553,0.84193203,37960.0,37958.0,0.23171223]
[1643958987950,0.09787797,37959.0,37958.0,0.23171223]
[1643958989052,0.09787797,37959.0,37958.0,0.1]
[1643958991102,0.84193203,37960.0,37958.0,0.1]
[1643958991305,0.84286269,37960.0,37958.0,0.1]
[1643958992304,0.84193203,37960.0,37958.0,0.1]
[1643958993105,0.82686356,37960.0,37958.0,0.1]
[1643958993969,1.17350956,37960.0,37958.0,0.1]
[1643958994160,1.17350956,37960.0,37959.0,0.82766583]
[1643958996059,1.17350956,37960.0,37959.0,0.87766583]
[1643958996260,1.17350956,37960.0,37959.0,0.82766583]
[1643958996261,0.82686356,37960.0,37959.0,0.82766583]
[1643958996459,1.17350956,37960.0,37959.0,0.82766583]
[1643958997359,1.27350956,37960.0,37959.0,0.82766583]
[1643958997830,1.17350956,37960.0,37959.0,0.82766583]
[1643958998536,1.17350956,37960.0,37958.0,0.001]
[1643958998537,1.45,37959.0,37958.0,0.001]
[1643958998731,0.399346,37959.0,37958.0,0.001]
[1643958998931,0.499346,37959.0,37958.0,0.001]
[1643958999631,0.499346,37959.0,37948.0,0.01806175]
[1643958999632,0.30276312,37950.0,37948.0,0.01806175]
[1643958999832,0.0527,37955.0,37948.0,0.01806175]
[1643959000737,0.35716351,37953.0,37948.0,0.01806175]
[1643959000934,0.60525773,37953.0,37948.0,0.01806175]
[1643959001554,0.60525773,37953.0,37947.0,0.05093514]
[1643959001854,0.60525773,37953.0,37947.0,0.05]
[1643959001855,0.60432275,37953.0,37947.0,0.05]
[1643959002054,0.60432275,37953.0,37947.0,0.05093514]
[1643959002055,0.346646,37952.0,37947.0,0.05093514]
[1643959002655,0.346646,37952.0,37947.0,0.00093514]
[1643959002855,0.60525775,37953.0,37947.0,0.00093514]
[1643959003056,0.60432275,37953.0,37946.0,0.05]
[1643959003259,0.07570862,37947.0,37946.0,0.05]
[1643959003456,0.07570862,37947.0,37945.0,0.15019434]
[1643959003658,0.07570862,37947.0,37945.0,0.15]
[1643959003856,0.51123654,37953.0,37945.0,0.15]
[1643959004056,0.51123654,37953.0,37945.0,0.15019434]
[1643959004257,0.51030155,37953.0,37945.0,0.21608734]
[1643959004456,0.51123653,37953.0,37947.0,0.00093513]
[1643959004657,0.346646,37952.0,37947.0,0.00093513]
[1643959004856,0.09869054,37948.0,37947.0,0.00093513]
[1643959005302,0.346646,37952.0,37947.0,0.00093513]
[1643959005501,0.346646,37952.0,37945.0,0.165893]
[1643959005502,0.51030155,37953.0,37945.0,0.215893]
[1643959005704,0.56393792,37953.0,37946.0,0.00093655]
[1643959005906,0.85551427,37953.0,37946.0,0.00093655]
[1643959006102,0.56393792,37953.0,37946.0,0.00093655]
[1643959006302,0.09491652,37951.0,37946.0,0.00093655]
[1643959006703,0.09491652,37951.0,37945.0,0.216893]
[1643959006904,0.09491652,37951.0,37947.0,0.00093654]
[1643959007807,0.09491652,37951.0,37946.0,0.05]
[1643959008007,0.09491652,37951.0,37947.0,0.00046484]
[1643959008607,0.65033288,37950.0,37947.0,0.00046484]
[1643959008959,0.65033288,37950.0,37941.0,0.01865565]
[1643959008960,0.32251912,37942.0,37941.0,0.01865565]
[1643959009154,0.66916512,37942.0,37941.0,0.01865565]
[1643959009864,0.87529135,37942.0,37940.0,0.001]
[1643959010054,0.346646,37941.0,37940.0,0.001]
[1643959010454,0.399346,37941.0,37940.0,0.001]
[1643959011853,0.399346,37941.0,37936.0,0.0512]
[1643959012054,0.0527,37941.0,37936.0,0.0512]
[1643959012253,0.0527,37941.0,37937.0,0.06591]
[1643959013105,0.0527,37941.0,37937.0,0.0669085]
[1643959013404,0.2193122,37940.0,37937.0,0.0669085]
[1643959013803,0.2193122,37940.0,37937.0,0.06591]
[1643959014005,0.2193122,37940.0,37937.0,0.0669085]
[1643959014304,0.2193122,37940.0,37937.0,0.0009985]
[1643959014505,0.0527,37941.0,37937.0,0.0009985]
[1643959015005,0.0527,37941.0,37936.0,0.0512]
[1643959015204,0.0527,37941.0,37937.0,0.0009985]
[1643959015807,0.0527,37941.0,37938.0,0.05]
[1643959016009,0.0527,37946.0,37937.0,0.0669085]
[1643959016207,0.346646,37945.0,37937.0,0.06591]
[1643959016463,0.003,37946.0,37944.0,0.05]
[1643959016657,0.003,37946.0,37944.0,0.33406125]
[1643959016854,0.003,37946.0,37945.0,0.40196797]
[1643959017352,0.003,37946.0,37945.0,0.1]
[1643959017754,0.003,37946.0,37945.0,0.095]
[1643959018554,0.003,37946.0,37945.0,0.34906704]
[1643959019957,0.003,37946.0,37945.0,0.095]
[1643959021201,0.003,37946.0,37945.0,0.045]
[1643959021403,0.003,37946.0,37945.0,0.095]
[1643959021800,0.003,37946.0,37945.0,0.045]
[1643959022000,0.003,37946.0,37945.0,0.095]
[1643959022201,0.003,37946.0,37945.0,0.05]
[1643959023201,0.003,37946.0,37944.0,0.00093556]
[1643959023505,0.28792907,37946.0,37941.0,0.132787]
[1643959023706,0.31040737,37946.0,37943.0,0.00093557]
[1643959023974,0.346646,37945.0,37943.0,0.00093557]
[1643959024355,0.5538302,37944.0,37943.0,0.00093557]
[1643959024756,0.6538302,37944.0,37941.0,0.001]
[1643959024956,0.346646,37943.0,37942.0,0.00093559]
[1643959025955,0.346646,37943.0,37941.0,0.00119418]
[1643959025956,0.3071842,37944.0,37941.0,0.00119418]
[1643959026156,0.3071842,37944.0,37941.0,0.00193529]
[1643959026355,0.07695374,37942.0,37941.0,0.00193529]
[1643959026559,0.3071842,37944.0,37941.0,0.00193529]
[1643959026955,0.346646,37943.0,37941.0,0.00193529]
[1643959027159,0.346646,37943.0,37941.0,0.001]
[1643959027458,0.446646,37943.0,37941.0,0.00193529]
[1643959027705,0.08987369,37942.0,37941.0,0.00193529]
[1643959028306,0.08987369,37942.0,37941.0,0.001]
[1643959029507,0.2071842,37944.0,37941.0,0.001]
[1643959029707,0.1557,37946.0,37941.0,0.001]
[1643959029708,0.0557,37946.0,37941.0,0.00119418]
[1643959030508,0.43850591,37945.0,37941.0,0.00119418]
[1643959030710,0.43850591,37945.0,37941.0,0.06710218]
[1643959030912,0.19185991,37945.0,37942.0,0.0009353]
[1643959031111,0.19185991,37945.0,37942.0,0.00112948]
[1643959031309,0.19185991,37945.0,37941.0,0.10803748]
[1643959031959,0.09185991,37945.0,37941.0,0.10823166]
[1643959032160,0.09185991,37945.0,37941.0,0.05119418]
[1643959032359,0.346646,37944.0,37941.0,0.05119418]
[1643959032560,0.63323346,37944.0,37941.0,0.05119418]
[1643959032758,0.73323346,37944.0,37941.0,0.05119418]
[1643959032959,0.73068358,37944.0,37941.0,0.05119418]
[1643959033160,0.446646,37944.0,37941.0,0.05119418]
[1643959033360,0.73359832,37944.0,37941.0,0.05119418]
[1643959033564,0.446646,37944.0,37941.0,0.05119418]
[1643959033860,0.446646,37944.0,37941.0,0.00119418]
[1643959035904,0.73185708,37944.0,37941.0,0.00119418]
[1643959036602,0.446646,37944.0,37941.0,0.00119418]
[1643959037403,0.73302867,37944.0,37941.0,0.00119418]
[1643959037603,0.446646,37944.0,37941.0,0.00119418]
[1643959038004,0.446646,37944.0,37941.0,0.001]
[1643959038404,0.496646,37944.0,37941.0,0.00119418]
[1643959038805,0.446646,37944.0,37941.0,0.00119418]
[1643959039055,0.446646,37944.0,37934.0,0.5082]
[1643959039257,0.09129417,37936.0,37934.0,0.5082]
[1643959039461,0.09129417,37936.0,37934.0,0.001]
[1643959040655,0.20628535,37939.0,37934.0,0.001]
[1643959040855,0.346646,37938.0,37935.0,0.557118]
[1643959041056,0.20628535,37939.0,37935.0,0.557118]
[1643959041559,0.40758857,37940.0,37935.0,0.557118]
[1643959041960,0.09764174,37938.0,37935.0,0.557118]
[1643959042802,0.09764174,37938.0,37935.0,0.55811513]
[1643959043003,0.09764174,37938.0,37935.0,0.49219713]
[1643959043205,0.24339702,37936.0,37935.0,0.49219713]
[1643959043504,0.19764174,37938.0,37935.0,0.49219713]
[1643959043703,0.346646,37937.0,37935.0,0.49219713]
[1643959043906,0.1,37937.0,37935.0,0.4912]
[1643959044106,0.1,37937.0,37935.0,0.49219713]
[1643959045007,0.346646,37936.0,37935.0,0.4912]
[1643959045404,0.09764174,37938.0,37935.0,0.4912]
[1643959045806,0.23589689,37943.0,37935.0,0.4912]
[1643959045807,0.33589689,37943.0,37935.0,0.4912]
[1643959046006,0.346646,37942.0,37937.0,0.065917]
[1643959046305,0.446646,37942.0,37937.0,0.065917]
[1643959046554,0.69398262,37942.0,37938.0,0.00099709]
[1643959046854,0.09922138,37941.0,37938.0,0.00119128]
[1643959047056,0.346646,37940.0,37938.0,0.00119128]
[1643959047258,0.346646,37940.0,37938.0,0.00099709]
[1643959047454,0.446646,37940.0,37937.0,0.06611119]
[1643959047656,0.446646,37940.0,37937.0,0.06691409]
[1643959048053,0.446646,37940.0,37937.0,0.00099709]
[1643959048255,0.512572,37940.0,37937.0,0.00099709]
[1643959048656,0.446646,37940.0,37936.0,0.00019419]
[1643959048853,0.446646,37940.0,37937.0,0.0009971]
[1643959049859,0.446646,37940.0,37936.0,0.00019419]
[1643959050058,0.446646,37940.0,37937.0,0.0669161]
[1643959050302,0.446646,37940.0,37937.0,0.0009971]
[1643959050505,0.446646,37940.0,37938.0,0.22274322]
[1643959050705,0.446646,37940.0,37938.0,0.27274322]
[1643959051405,0.446646,37940.0,37937.0,0.00099709]
[1643959052005,0.7,37939.0,37935.0,0.61421928]
[1643959052205,0.1,37940.0,37935.0,0.183828]
[1643959052408,0.346655,37939.0,37935.0,0.4938817]
[1643959052807,0.07761765,37937.0,37935.0,0.4938817]
[1643959053107,0.1,37939.0,37935.0,0.4938817]
[1643959053305,0.0047,37944.0,37935.0,0.4938817]
[1643959053306,0.346655,37943.0,37936.0,0.31758634]
[1643959053508,0.346655,37943.0,37938.0,0.05]
[1643959053708,0.99553124,37946.0,37942.0,0.05]
[1643959053709,0.7704,37946.0,37942.0,0.05]
[1643959053969,0.7704,37946.0,37935.0,0.45856763]
[1643959053970,0.003,37946.0,37945.0,0.05]
[1643959054757,0.003,37946.0,37945.0,0.1]
[1643959055458,0.003,37946.0,37945.0,0.05]
[1643959055859,0.003,37946.0,37945.0,0.28365161]
[1643959057468,0.003,37946.0,37945.0,0.23365161]
[1643959057704,0.003,37946.0,37944.0,0.51012863]
[1643959058106,0.003,37946.0,37945.0,0.23158744]
[1643959058707,0.003,37946.0,37945.0,0.33158744]
[1643959059209,0.003,37946.0,37945.0,0.1]
[1643959060012,0.00268976,37946.0,37945.0,0.1]
[1643959061110,0.00268976,37946.0,37945.0,0.05]
[1643959061762,0.00066643,37947.0,37945.0,0.05]
[1643959061964,0.48539789,37951.0,37946.0,0.065896]
[1643959062163,0.00099627,37947.0,37946.0,0.065896]
[1643959062363,0.34765127,37947.0,37946.0,0.065896]
[1643959063164,0.346655,37947.0,37946.0,0.065896]
[1643959063565,0.346655,37949.0,37946.0,0.065896]
[1643959063964,0.446655,37949.0,37946.0,0.065896]
[1643959064164,0.1,37949.0,37946.0,0.065896]
[1643959064565,0.10099649,37949.0,37943.0,0.15]
[1643959064764,0.30457365,37945.0,37943.0,0.38361677]
[1643959065068,0.00099649,37949.0,37943.0,0.38629303]
[1643959065508,0.21328812,37950.0,37943.0,0.38629303]
[1643959065709,0.00099648,37949.0,37943.0,0.33818158]
[1643959065909,0.00099648,37949.0,37945.0,0.05]
[1643959066111,0.00099648,37949.0,37946.0,0.23473191]
[1643959066310,0.00099648,37949.0,37946.0,0.05]
[1643959066509,0.346655,37948.0,37946.0,0.05]
[1643959066709,0.346655,37948.0,37945.0,0.065897]
[1643959066710,0.23639374,37950.0,37945.0,0.065897]
[1643959066910,0.00099649,37949.0,37945.0,0.065897]
[1643959067510,0.00099649,37949.0,37943.0,0.1]
[1643959067714,0.00099649,37949.0,37947.0,0.05]
[1643959067912,0.44250613,37950.0,37947.0,0.05]
[1643959068111,0.00099648,37949.0,37947.0,0.05]
[1643959068310,0.09152847,37948.0,37942.0,0.13179]
[1643959068517,0.09152847,37948.0,37941.0,0.001]
[1643959068518,0.42582844,37947.0,37941.0,0.001]
[1643959068713,0.22513124,37945.0,37941.0,0.001]
[1643959068971,0.62448624,37944.0,37933.0,0.0011]
[1643959069165,0.0527,37943.0,37939.0,0.00019224]
[1643959069363,0.19134829,37941.0,37939.0,0.00019224]
[1643959069562,0.19134829,37941.0,37938.0,0.00052173]
[1643959069763,0.0527,37943.0,37938.0,0.05052173]
[1643959069963,0.346655,37942.0,37938.0,0.00052173]
[1643959070267,0.346655,37942.0,37941.0,0.05]
[1643959070565,0.22513124,37946.0,37941.0,0.05]
[1643959070566,0.22513124,37949.0,37941.0,0.05]
[1643959070768,0.22513124,37949.0,37937.0,0.34733991]
[1643959070769,0.9966998,37948.0,37947.0,0.05]
[1643959070965,0.2466998,37948.0,37941.0,0.05]
[1643959071364,0.23859139,37945.0,37941.0,0.05]
[1643959071564,0.23859139,37945.0,37943.0,0.05]
[1643959071565,0.07763206,37944.0,37943.0,0.05]
[1643959072163,0.0727419,37944.0,37943.0,0.05]
[1643959073212,0.0727419,37944.0,37939.0,0.10019224]
[1643959073213,0.23958672,37945.0,37941.0,0.05]
[1643959073813,0.23859139,37945.0,37941.0,0.05]
[1643959074213,0.23958673,37945.0,37941.0,0.05]
[1643959074912,0.23958673,37945.0,37941.0,0.115897]
[1643959075112,0.23859139,37945.0,37941.0,0.165897]
[1643959075312,0.23958673,37945.0,37941.0,0.165897]
[1643959076314,0.23859139,37945.0,37941.0,0.165897]
[1643959076565,0.23958673,37945.0,37941.0,0.165897]
[1643959076767,0.23958673,37945.0,37941.0,0.115897]
[1643959076968,0.23958673,37945.0,37943.0,0.05]
[1643959077265,0.01765957,37947.0,37943.0,0.05]
[1643959077467,0.22513124,37950.0,37943.0,0.05]
[1643959077667,0.346655,37949.0,37943.0,0.05]
[1643959077867,0.66554831,37949.0,37943.0,0.05]
[1643959078070,0.66554831,37949.0,37941.0,0.231793]
[1643959078268,0.40161487,37949.0,37941.0,0.231793]
[1643959078468,0.09700458,37948.0,37941.0,0.181793]
[1643959078669,0.346655,37947.0,37941.0,0.181793]
[1643959078968,0.446655,37947.0,37941.0,0.231793]
[1643959079167,0.446655,37947.0,37941.0,0.181793]
[1643959079868,0.1,37947.0,37941.0,0.231793]
[1643959080067,0.10047593,37947.0,37941.0,0.231793]
[1643959080308,0.00047593,37947.0,37941.0,0.181793]
[1643959080710,0.00047593,37947.0,37942.0,0.05]
[1643959081113,0.09700458,37948.0,37941.0,0.115897]
[1643959081307,0.34765105,37947.0,37941.0,0.115897]
[1643959081708,0.44765105,37947.0,37941.0,0.115897]
[1643959082108,0.10099605,37947.0,37941.0,0.115897]
[1643959082310,0.1,37947.0,37941.0,0.115897]
[1643959082510,0.10099604,37947.0,37941.0,0.065897]
[1643959082710,0.10099604,37947.0,37943.0,0.36421075]
[1643959082910,0.00099604,37947.0,37945.0,0.05]
[1643959083512,0.26306064,37952.0,37945.0,0.05]
[1643959083710,0.346655,37951.0,37948.0,0.05]
[1643959084557,0.446655,37951.0,37948.0,0.05]
[1643959084758,0.346655,37951.0,37948.0,0.05]
[1643959084958,0.446655,37951.0,37948.0,0.05]
[1643959085358,0.54720056,37951.0,37947.0,0.05]
[1643959085760,0.54720056,37951.0,37948.0,0.05]
[1643959086063,0.67550747,37951.0,37947.0,0.05]
[1643959086260,0.77550747,37951.0,37943.0,0.31421075]
[1643959086461,0.24644787,37949.0,37946.0,0.065893]
[1643959087362,0.24644787,37949.0,37942.0,0.181779]
[1643959087363,0.346655,37948.0,37942.0,0.181779]
[1643959087565,0.24644787,37949.0,37942.0,0.181779]
[1643959087806,0.346655,37947.0,37942.0,0.231779]
[1643959088006,0.346655,37947.0,37942.0,0.1]
[1643959088207,0.26474398,37946.0,37942.0,0.1]
[1643959088406,0.346655,37945.0,37942.0,0.1]
[1643959088610,0.30201249,37943.0,37942.0,0.1]
[1643959088806,0.30201249,37943.0,37942.0,0.05]
[1643959089007,0.40201249,37943.0,37940.0,0.05099667]
[1643959089208,0.40201249,37943.0,37940.0,0.00099667]
[1643959089407,0.346655,37942.0,37940.0,0.00099667]
[1643959089610,0.346655,37942.0,37936.0,0.00019221]
[1643959089807,0.4527,37941.0,37940.0,0.00094128]
[1643959090009,0.399355,37941.0,37940.0,0.00094128]
[1643959090307,0.499355,37941.0,37940.0,0.00094128]
[1643959090509,0.446655,37941.0,37940.0,0.00094128]
[1643959090706,0.446655,37941.0,37935.0,0.00019221]
[1643959090909,0.1,37941.0,37939.0,0.00094129]
[1643959091108,0.30201249,37943.0,37939.0,0.00094129]
[1643959091109,0.346655,37940.0,37939.0,0.00094129]
[1643959091310,0.38657633,37937.0,37935.0,0.0486335]
[1643959091557,0.29077036,37937.0,37935.0,0.04882575]
[1643959091856,0.29077036,37937.0,37935.0,0.0486335]
[1643959092156,0.0013665,37936.0,37935.0,0.0486335]
[1643959092753,0.0013665,37936.0,37934.0,0.04882575]
[1643959092953,0.0013665,37936.0,37934.0,0.0486335]
[1643959093756,0.0013665,37936.0,37934.0,0.0986335]
[1643959093958,0.07660263,37938.0,37934.0,0.0986335]
[1643959094155,0.0013665,37943.0,37934.0,0.14882575]
[1643959094156,0.59453469,37943.0,37934.0,0.14882575]
[1643959094356,0.59316819,37943.0,37936.0,0.22825946]
[1643959094556,0.0013665,37939.0,37935.0,0.00019225]
[1643959094955,0.0013665,37939.0,37934.0,0.09882575]
[1643959095409,0.0013665,37938.0,37934.0,0.09882575]
[1643959095608,0.09930927,37940.0,37935.0,0.065908]
[1643959095808,0.09930927,37940.0,37935.0,0.0670962]
[1643959096009,0.0013665,37941.0,37935.0,0.0670962]
[1643959096311,0.346655,37942.0,37935.0,0.0011882]
[1643959096711,0.346655,37942.0,37935.0,0.00019225]
[1643959096913,0.346655,37942.0,37937.0,0.00099592]
[1643959096914,0.0013665,37938.0,37937.0,0.00099592]
[1643959097909,0.0013665,37938.0,37935.0,0.00019225]
[1643959098110,0.0013665,37938.0,37936.0,0.00094063]
[1643959098959,0.27147937,37937.0,37934.0,0.1145425]
[1643959099159,0.27147937,37937.0,37935.0,0.23083382]
[1643959100356,0.27147937,37937.0,37934.0,0.1145425]
[1643959100556,0.27147937,37937.0,37934.0,0.11506216]
[1643959100856,0.27147937,37937.0,37934.0,0.34582341]